Cogmind - Beta 17 @@@ ROGUE MODE // 2026.07.26 @ 19:14:37 Player: gorb Result: Destroyed by as-69154 with Assembled Maul Performance ------------- Evolutions (0) 0 Regions Visited (4) 800 Robots Destroyed (4) 20 Value Destroyed (102) 102 Prototype IDs (24) 480 Alien Tech Used (0) 0 Bonus (300) 300 TOTAL SCORE: 1702 Bonus ------- Aligned with FarCom 300 Cogmind --------- Core Integrity 0/250 Matter 300/300 Energy 94/100 System Corruption 5% Temperature Cool (2) Movement Hovering (56) Location -9/Mines Parts ------- > --- POWER (1) -------- (None) > --- PROPULSION (2) --- Improved Hover Unit Improved Hover Unit > --- UTILITY (2) ------ Small Storage Unit > --- WEAPON (2) ------- Mace > --- INVENTORY (8) ---- Armored Wheel Armored Wheel Improved Hover Unit Improved EM Shotgun AWS/Gauss Proton Bomb Trap Proton Bomb Trap Peak State ------------ > --- POWER ------------ Light Ion Engine > --- PROPULSION ------- Improved Hover Unit Improved Hover Unit > --- UTILITY ---------- Small Storage Unit Terrain Scan Processor > --- WEAPON ----------- Improved EM Shotgun Mace > --- INVENTORY -------- Light Nuclear Core Armored Wheel Armored Wheel Improved Hover Unit Improved Hover Unit Terrain Scanner Assault Rifle Light Assault Rifle [Rating: 14] Favorites ----------- Power Light Nuclear Core Engine Light Ion Engine Power Core Light Nuclear Core Propulsion Improved Hover Unit Wheel Wheel Hover Unit Improved Hover Unit Utility Small Storage Unit Device Structural Scanner Storage Small Storage Unit Processor Terrain Scan Processor Weapon Light Assault Rifle Energy Gun Improved EM Shotgun Ballistic Gun Light Assault Rifle Impact Weapon Mace Build | -11 -10 -10 -10 -9 ------- Run | Yrd Mat Min Exi Min Slots Evolved . | . . . . . Power . | . . . . . Propulsion . | . . . . . Utility . | . . . . . Weapon . | . . . . . Parts Attached 14 | 6 6 2 . . Power 2 | 1 . 1 . . Engine 1 | 1 . . . . Core 1 | . . 1 . . Reactor . | . . . . . Propulsion 5 | 2 2 1 . . Treads . | . . . . . Leg . | . . . . . Wheel 2 | 2 . . . . Hover 3 | . 2 1 . . Flight . | . . . . . Utility 3 | 1 2 . . . Device 1 | . 1 . . . Storage 1 | 1 . . . . Processor 1 | . 1 . . . Hackware . | . . . . . Protection . | . . . . . Artifact . | . . . . . Weapon 4 | 2 2 . . . Energy Gun 1 | . 1 . . . Energy Cannon . | . . . . . Ballistic Gun 2 | 2 . . . . Ballistic Cannon . | . . . . . Launcher . | . . . . . Special Weapon . | . . . . . Impact Weapon 1 | . 1 . . . Slashing Weapon . | . . . . . Piercing Weapon . | . . . . . Special Melee Weapon . | . . . . . Unidentified Prototypes 1 | . 1 . . . Parts Lost 4 | . . 2 . 2 Power 2 | . . 1 . 1 Propulsion 1 | . . 1 . . Utility . | . . . . . Weapon 1 | . . . . 1 Highest Loss Streak 2 | . . 2 . 1 To Critical Strikes . | . . . . . Average Backups 5 | 3 4 6 5 5 Power . | . 1 . . . Propulsion 2 | 1 2 3 3 3 Utility . | . . 1 . . Weapon 1 | 1 1 2 2 2 Tool/Special . | . . . . . Unused Backups 10 | . 5 . 1 4 Power 1 | . 1 . . . Propulsion 7 | . 4 . . 3 Utility 1 | . . . 1 . Weapon 1 | . . . . 1 Tool/Special . | . . . . . Average Slot Usage (%) 88 | . 80 97 90 77 Engine 4 | . 14 1 . . Core 9 | . . 11 14 14 Wheel 5 | . 21 . . . Hover 21 | . 4 26 28 28 Device 2 | . 8 . . . Storage 14 | . 14 14 14 14 Processor 5 | . . 14 5 . Ballistic Gun 13 | . 14 14 14 6 Impact Weapon 10 | . 2 14 14 14 Peak Build Rating 14 | 5 14 14 14 13 Average Rating 11 | 3 6 13 13 12 On Entrance 8 | . 5 12 14 13 Avg Prop Armor Cover (%) 8 | . 8 . . . Naked Turns . | . . . . . Heaviest Build 13 | 9 12 13 13 13 Greatest Support 20 | 20 20 14 14 14 Greatest Overweight (x) 3 | . 3 1 . . Average Overweight (x) . | . . . . . Largest Inventory Capacity 8 | 8 8 8 8 8 Average Capacity 7 | 6 8 8 8 8 Most Carried 8 | 5 8 8 8 8 Average Carried 6 | 3 4 7 7 8 Final Capacity 8 | 8 8 8 8 8 Final Carried 8 | 4 8 8 8 8 Class Distribution -------------------- 100% | Mutant Dominant Class ---------------- Mutant | -10/Materials Mutant | -10/Mines Mutant | -10/Exiles Mutant | -9/Mines Resources | -11 -10 -10 -10 -9 ----------- Run | Yrd Mat Min Exi Min Matter Collected 338 | 228 76 34 . . Remotely . | . . . . . Salvage Created 156 | . 23 92 . 41 Parts 2 | . . 2 . . Haulers Intercepted . | . . . . . Recyclers Shooed . | . . . . . Parts Field Recycled . | . . . . . Retrieved Matter . | . . . . . Parts Self-Destructed . | . . . . . Prevented . | . . . . . Parts Restored . | . . . . . Kills | -11 -10 -10 -10 -9 ------- Run | Yrd Mat Min Exi Min Combat Hostiles Destroyed 5 | . . 2 . 3 Melee 5 | . . 2 . 3 Classes Destroyed 4 | . 1 2 . 1 Builder 1 | . . 1 . . Watcher 1 | . 1 . . . Grunt 2 | . . 2 . . Assembled 3 | . . . . 3 Best Kill Streak 2 | . 1 2 . 2 Combat Bots Only 2 | . . 2 . 2 Max Kills in Single Turn 1 | . 1 1 . 1 Gunslinging . | . . . . . Exploded . | . . . . . Melee 1 | . . 1 . 1 Uniques/NPCs Destroyed . | . . . . . Combat | -11 -10 -10 -10 -9 -------- Run | Yrd Mat Min Exi Min Hostile Shots Fired 47 | . 1 20 . 26 Missed 16 | . 1 6 . 9 Hits 31 | . . 14 . 17 Melee 8 | . . . . 8 Projectile 23 | . . 14 . 9 Damage Taken 604 | . 8 196 . 400 Core 254 | . . 76 . 178 Absorbed by Shields . | . . . . . Core Remaining (%) 100 | 100 . . . . Volleys Fired 7 | . 3 4 . . Largest 1 | . 1 1 . . Hottest 20 | . 20 20 . . Shots Fired 7 | . 3 4 . . Gun 7 | . 3 4 . . Cannon . | . . . . . Launcher . | . . . . . Special . | . . . . . Kinetic 7 | . 3 4 . . Thermal . | . . . . . Explosive . | . . . . . Electromagnetic . | . . . . . Robot Hit Streak 3 | . 2 3 . . Robot Miss Streak 1 | . 1 1 . . Penetration Max . | . . . . . Secondary Targets . | . . . . . Shots Hit Robots 17 | . 3 9 . 5 Core Hits 4 | . 1 2 . 1 Critical Kills . | . . . . . Critical Parts Destroyed 3 | . 1 . . 2 Critical Strikes 3 | . 1 . . 2 Smash 3 | . 1 . . 2 Melee Attacks 36 | . 1 8 . 27 Impact 36 | . 1 8 . 27 Slashing . | . . . . . Piercing . | . . . . . Sneak Attacks 2 | . . 2 . . Combat Hostiles . | . . . . . Follow-up Attacks . | . . . . . Damage Inflicted 543 | . 82 291 . 170 Guns 42 | . 17 25 . . Cannons . | . . . . . Explosions . | . . . . . Melee 484 | . 48 266 . 170 Ramming 17 | . 17 . . . Kinetic 42 | . 17 25 . . Thermal . | . . . . . Explosive . | . . . . . Electromagnetic . | . . . . . Impact 484 | . 48 266 . 170 Slashing . | . . . . . Piercing . | . . . . . Highest Corruption 5 | . . . . 5 Average Corruption 5 | . . . . 5 Corruption Purged . | . . . . . Corruption Blocked . | . . . . . Overload Shots . | . . . . . Overflow Damage 200 | . 48 60 . 92 Projectiles . | . . . . . Explosions . | . . . . . Melee 200 | . 48 60 . 92 Knockbacks 2 | . . 2 . . Impact 2 | . . 2 . . Kinetic . | . . . . . Secondary . | . . . . . Self-Inflicted Damage 8 | . 8 . . . Shots . | . . . . . Rammed 3 | . 3 . . . Targets Rammed 3 | . 3 . . . Kicked . | . . . . . Crushed . | . . . . . Highest Temperature 8 | . . 8 . 6 Average Temperature 5 | . . 5 . 5 Received Heat Transfer 148 | . . 108 . 40 Siege Activations . | . . . . . Martial Activations . | . . . . . Shielding Activations . | . . . . . Robots Disrupted . | . . . . . Combat Hostiles . | . . . . . Robots Corrupted 1 | . . 1 . . Combat Hostiles . | . . . . . Parts Fried 3 | . . 3 . . Impact Corruptions 9 | . 3 3 . 3 Robots Melted . | . . . . . Combat Hostiles . | . . . . . Parts Melted . | . . . . . Heat Transferred . | . . . . . Parts Sabotaged . | . . . . . Parts Stolen . | . . . . . Parts Stripped . | . . . . . Power Chain Reactions . | . . . . . Alert | -11 -10 -10 -10 -9 ------- Run | Yrd Mat Min Exi Min Maximum Alert Level . | . . . . . Low Security (%) 100 | 100 100 100 . 100 Level 1 . | . . . . . Level 2 . | . . . . . Level 3 . | . . . . . Level 4 . | . . . . . Level 5 . | . . . . . High Security . | . . . . . Max Security . | . . . . . Peak Influence 30 | . 15 30 . 2 Initial . | . . . . . Average 2 | . 2 4 . . Influence Increases 96 | . 37 55 . 4 Destroy 0b10 Robot/C 40 | . . 40 . . Destroy 0b10 Robot/NC 10 | . 5 5 . . Destroy Leader 12 | . 2 10 . . Destroy Structure 4 | . . . . 4 Lose Combat Pursuer 30 | . 30 . . . Influence Decreases 95 | . 37 55 . 3 Time Decay 78 | . 30 45 . 3 Lost Part 10 | . . 10 . . Purge Threat 7 | . 7 . . . Squads Dispatched . | . . . . . Investigation . | . . . . . Extermination . | . . . . . Reinforcement . | . . . . . Assault . | . . . . . Garrison . | . . . . . Intercept . | . . . . . Searches Triggered . | . . . . . Construction Impeded . | . . . . . Haulers Reinforced . | . . . . . Active Scanning Responses . | . . . . . Cargo Convoy Interrupts . | . . . . . Stealth | -11 -10 -10 -10 -9 --------- Run | Yrd Mat Min Exi Min Distress Signals . | . . . . . Communications Jammed . | . . . . . Distress Signals . | . . . . . Times Spotted 17 | . 6 2 . 9 Peak Tracking Total 8 | . 2 2 . 8 Tactical Retreats 5 | . 2 . . 3 Traps | -11 -10 -10 -10 -9 ------- Run | Yrd Mat Min Exi Min Traps Triggered . | . . . . . Indirectly . | . . . . . Trap Hack Attempts . | . . . . . Triggered . | . . . . . Disarmed . | . . . . . Reprogrammed . | . . . . . Reused . | . . . . . Traps Extracted . | . . . . . Installed . | . . . . . Triggered . | . . . . . Most Traps Carried 2 | . . 2 2 2 Machines | -11 -10 -10 -10 -9 ---------- Run | Yrd Mat Min Exi Min Machines Disabled . | . . . . . Max in Single Turn . | . . . . . Machines Repaired . | . . . . . Machines Dismantled . | . . . . . Machines Sabotaged . | . . . . . Overloaded Fab Kills . | . . . . . Hacking | -11 -10 -10 -10 -9 --------- Run | Yrd Mat Min Exi Min Machines Accessed 8 | . 2 . 5 1 Terminals 3 | . 2 . . 1 Fabricators . | . . . . . Repair Stations . | . . . . . Recycling Units . | . . . . . Scanalyzers . | . . . . . Garrison Access . | . . . . . Total Hacks 56 | . 2 . 50 4 Successful 54 | . 1 . 50 3 Failed 2 | . 1 . . 1 Catastrophic 1 | . . . . 1 Database Lockouts . | . . . . . Manual 4 | . 2 . 2 . Terminals 6 | . 2 . . 4 Fabricators . | . . . . . Repair Stations . | . . . . . Recycling Units . | . . . . . Scanalyzers . | . . . . . Garrison Access . | . . . . . Terminal Hacks 54 | . 1 . 50 3 Record 50 | . . . 49 1 Alert Level 1 | . . . . 1 Unreport Threat 1 | . 1 . . . Assault Status 1 | . . . . 1 Proto ID Catalog 1 | . . . 1 . Fabricator Hacks . | . . . . . Repair Station Hacks . | . . . . . Recycling Unit Hacks . | . . . . . Scanalyzer . | . . . . . Garrison Access Hacks . | . . . . . Unauthorized Hacks . | . . . . . Terminals . | . . . . . Fabricators . | . . . . . Repair Stations . | . . . . . Recycling Units . | . . . . . Scanalyzers . | . . . . . Garrison Access . | . . . . . Data Cores Recovered . | . . . . . Used . | . . . . . Hacking Detections 1 | . . . . 1 Full Trace Events . | . . . . . Feedback Events . | . . . . . Feedback Blocked . | . . . . . Robot Schematics Acquired . | . . . . . Robots Built . | . . . . . Authchips . | . . . . . Time . | . . . . . Total Robot Build Rating . | . . . . . Part Schematics Acquired . | . . . . . Parts Built . | . . . . . Authchips . | . . . . . Time . | . . . . . Total Part Build Rating . | . . . . . Part Studies Acquired . | . . . . . Parts Repaired . | . . . . . Time . | . . . . . Parts Recycled . | . . . . . Recycled Matter . | . . . . . Retrieved Matter . | . . . . . Retrieved Components . | . . . . . Parts Scanalyzed . | . . . . . Part Schematics Acquired . | . . . . . Parts Damaged . | . . . . . Bothacking | -11 -10 -10 -10 -9 ------------ Run | Yrd Mat Min Exi Min Used RIF Installer . | . . . . . Robots Hacked . | . . . . . Non-combat . | . . . . . Combat . | . . . . . Robot Hacks Applied . | . . . . . Relay Couplers Released . | . . . . . Fabnet Peak Effective % . | . . . . . Robots Rewired . | . . . . . Allies Hacked . | . . . . . Hacks Repelled . | . . . . . Allies | -11 -10 -10 -10 -9 -------- Run | Yrd Mat Min Exi Min Total Allies . | . . . . . Largest Group . | . . . . . Highest-Rated Group . | . . . . . Highest-Rated Ally . | . . . . . Total Orders . | . . . . . Ally Attacks . | . . . . . Total Damage . | . . . . . Kills . | . . . . . Allies Corrupted . | . . . . . Allies Melted . | . . . . . Intel | -11 -10 -10 -10 -9 ------- Run | Yrd Mat Min Exi Min Active Infowar (turns) 194 | . 194 . . . Structural 194 | . 194 . . . Robot Analysis Total . | . . . . . Derelict Logs Recovered 3 | . . 3 . . Drone Launches . | . . . . . Drone Recoveries . | . . . . . Exploration | -11 -10 -10 -10 -9 ------------- Run | Yrd Mat Min Exi Min Turns Passed 1207 | 45 318 251 488 105 Spaces Moved 1617 | 43 281 379 867 47 Core 18 | 10 8 . . . Treads . | . . . . . Legs . | . . . . . Wheels 246 | 33 213 . . . Hover 1353 | . 60 379 867 47 Flight . | . . . . . Fastest Speed 50 | 50 56 56 56 56 Average Speed 60 | 73 78 57 56 56 Slowest Speed 200 | 80 200 120 56 56 Overloaded Moves . | . . . . . Propulsion Burnouts . | . . . . . Robots Hopped . | . . . . . Potential Cave-ins 10 | . . . . 10 Cave-ins Triggered 1 | . . . . 1 Exploration Rate (%) 45 | 3 35 88 94 6 Regions Visited 4 Branch Regions 3 Pre-discovered Areas 2 | . . 1 1 . Known Exits Taken . | . . . . . Unknown Exits Taken 4 | 1 1 1 1 . Scrap Searched 3 | . . 3 . . Spaces Dug 15 | . . . . 15 Terrain Destroyed 15 | . . . . 15 Melee 15 | . . . . 15 Projectile . | . . . . . AOE . | . . . . . Terrain Rammed . | . . . . . Walls Destroyed . | . . . . . Machines Disabled . | . . . . . Actions | -11 -10 -10 -10 -9 --------- Run | Yrd Mat Min Exi Min Total 1777 | 55 377 394 870 81 Wait 67 | . 60 . . 7 Move 1613 | 42 280 378 866 47 Hop . | . . . . . Pick Up 23 | 6 14 2 1 . Fast Attach 4 | 3 1 . . . Attach 10 | 3 5 2 . . Detach 1 | 1 . . . . Swap 1 | . 1 . . . Drop 12 | . 9 . 3 . Fire 7 | . 3 4 . . Melee 36 | . 1 8 . 27 Ram 3 | . 3 . . . Kick . | . . . . . Crush . | . . . . . Escape Stasis . | . . . . . Rewire . | . . . . . Trap . | . . . . . Miscellaneous . | . . . . . Route ------- -11/Scrapyard -10/Materials -10/Mines (discovered 3 exits: [*Mat x2] / *Exi) -10/Exiles (discovered 2 exits: *Min x2) -9/Mines History --------- Turn | Location | Event 10 | -11/Scrapyard | Discovered new exit (range 16) 46 | -11/Scrapyard | Entered Materials 350 | -10/Materials | Discovered new exit (range 14) 364 | -10/Materials | Entered Mines 379 | -10/Mines | Build established: Mutant 431 | -10/Mines | Found a hidden stash of uninstalled traps 444 | -10/Mines | Discovered new exit (range 3) 553 | -10/Mines | Learned Materials emergency access door positions 556 | -10/Mines | Learned location of Mines (-9) 557 | -10/Mines | Discovered new exit (range 7) 611 | -10/Mines | Deemed a non-threat by the Exiles lab entrance 612 | -10/Mines | Discovered new exit (range 5) 615 | -10/Mines | Entered Exiles 629 | -10/Exiles | Met 8R-AWN 641 | -10/Exiles | Met EX-HEX 666 | -10/Exiles | Met EX-DEC 679 | -10/Exiles | Learned location of Zion (-7) 706 | -10/Exiles | Discovered new exit (range 12) 746 | -10/Exiles | Met EX-BIN 757 | -10/Exiles | Aligned with FarCom system 758 | -10/Exiles | Given EX-Vault access code 790 | -10/Exiles | Opened EX-Vault 795 | -10/Exiles | Found AWS/Gauss 807 | -10/Exiles | Warned to stay clear of 0b10 Research branches 842 | -10/Exiles | Visited The Gauntlet 1028 | -10/Exiles | Discovered new exit (range 15) 1103 | -10/Exiles | Left Exiles lab with AWS/Gauss 1103 | -10/Exiles | Entered Mines 1104 | -9/Mines | Assembled infested the area 1109 | -9/Mines | Assisted by a Guerilla fighting off Assembled 1139 | -9/Mines | Core integrity fell below 50% 1170 | -9/Mines | Crushed by falling debris 1189 | -9/Mines | Core integrity fell below 20% 1208 | -9/Mines | Destroyed by as-69154 with Assembled Maul Last Messages --------------- K-01 Serf system corrupted by crushing effect. K-01 Serf knocked back. Lgt. Assault Rifle destroyed. as-09020 destroyed. as-21676 suffers critical hit (Smash). Destroyed Asb. Heavy Rifle. as-21676 system corrupted by crushing effect. as-21676 destroyed. Destroyed Asb. Blade. as-74557 system corrupted by crushing effect. The unstable cave ceiling collapses. Crushed by falling debris. The unstable cave ceiling collapses. as-43208 suffers critical hit (Smash). Destroyed Asb. Heavy Rifle. as-43208 system corrupted by crushing effect. as-43208 destroyed. Knocked back. Lgt. Nuclear Core destroyed. System corrupted by crushing effect (+5). Map ----- +----------------------------------------------------+ | | | | | | | | | | | | | | | | | | | | | | | | | | | ????????????????????????##?????##?????????? | | ????????????????????####"######T##????????? | | ???????????????????##" #????????? | | ??????????????????## # #????????? | | ??????????????????#%## """ #????????? | | ??????????????????#### """ #????????? | | ??????????????????#### """ #????????? | | ?????????????????## % #????????? | | ?????????????????# ### """ #????????? | | ?????????????????#a#?# """ #????????? | | ?????????????????#a#?# """ % #????????? | | ?????????????????#a#?#%!%= #????????? | | ?????????????????#@#?##"!"########????????? | | ?????????????????#;#??## #????????????????? | | ????????????????? ##???# #????????????????? | | ????????????????? ?????" ????????????????? | | ???????????????? ????? #????????????????? | | ???????????????? ????####????????????????? | | ??????????????? ?????????????????????????? | | ???????????????##?????????????????????????? | | ??????????????????????????????????????????? | | ??????????????????????????????????????????? | | ??????????????????????????????????????????? | | ??????????????????????????????????????????? | | ??????????????????????????????????????????? | | ??????????????????????????????????????????? | | ??????????????????????????????????????????? | | ??????????????????????????????????????????? | | ??????????????????????????????????????????? | | ??????????????????????????????????????????? | | ??????????????????????????????????????????? | | ??????????????????????????????????????????? | | ??????????????????????????????????????????? | | ??????????????????????????????????????????? | | ??????????????????????????????????????????? | | ??????????????????????????????????????????? | | ??????????????????????????????????????????? | +----------------------------------------------------+ Best States ------------- Heat Dissipation 25 Energy Generation 14 Energy Capacity 160 Matter Stores 300 Matter Capacity 300 Sight Range 16 Terrain Scan Density 85 Evasion (%) 53 Item Schematics ----------------- None Robot Schematics ------------------ None Fabricated ------------ Nothing Repaired ---------- Nothing Studied --------- None Alien Tech Used ----------------- None Achievements -------------- Sixth Sense Challenges ------------ None Game ------ Seed SixMultireflexCompanion Manual? 0 Play Time 00:31:40 Cumulative 46.6 hours Start 2026.07.26 @ 18:25:30 End 2026.07.26 @ 19:14:37 Sessions 1 Manual Loads 0 Difficulty Rogue Special Mode None Game No. 84 Rogue 82 Adventurer 0 Explorer 2 Win Type - Total 0 Types 0/0/0/0/0/0/0/0/0/0 Lore% 25 Gallery% 28 Achievement% 20 Wizard Run 0 Options --------- Layout 1 ASCII 0 Keyboard 0 Movement Mouse Keybinds 0 Fullscreen 1 Font 24/Smallcaps Map View 50x35 Zoom Use 0% Tactical HUD 0 Map Filters NONE Filters NONE Steam 1 RUN: 88c4f517-dc37-4dbe-b888-4daa007063db